bitfinex/quotes_SOLUSD_20250402
["timestamp","ask_amount","ask_price","bid_price","bid_amount"]
[1743555871012,8.0117,125.81,125.73,69.48664886]
[1743555871312,38.59177934,125.81,125.73,50.837]
[1743555871489,10.70887934,125.8,125.73,50.837]
[1743555872298,38.59177934,125.81,125.73,50.837]
[1743555872502,38.59177934,125.81,125.73,57.937]
[1743555872707,38.59177934,125.81,125.73,65.8904]
[1743555874616,27.8829,125.81,125.74,1.5262]
[1743555874820,27.8829,125.81,125.74,52.3632]
[1743555875589,38.59177934,125.81,125.74,52.3632]
[1743555876209,27.8829,125.81,125.74,52.3632]
[1743555876397,38.59177934,125.81,125.74,52.3632]
[1743555878013,27.8829,125.81,125.74,52.3632]
[1743555878292,38.59177934,125.81,125.74,52.3632]
[1743555879317,0.063,125.81,125.75,18.64964886]
[1743555879653,0.063,125.81,125.77,18.64964886]
[1743555879795,0.063,125.81,125.79,7.9497]
[1743555880802,0.063,125.81,125.79,11.99358963]
[1743555881211,0.063,125.81,125.8,6.5594]
[1743555881412,0.063,125.84,125.8,76.04604886]
[1743555881814,0.063,125.84,125.81,7.9484]
[1743555882138,0.063,125.84,125.82,7.18]
[1743555882718,0.063,125.84,125.82,58.017]
[1743555883941,0.063,125.84,125.83,7.9472]
[1743555884150,0.063,125.84,125.83,58.7842]
[1743555888224,0.063,125.84,125.83,78.93504886]
[1743555888565,0.063,125.86,125.83,78.93504886]
[1743555888925,0.063,125.86,125.85,18.64964886]
[1743555889353,14.2992,125.91,125.85,50.774]
[1743555889544,10.08108367,125.9,125.85,50.774]
[1743555890361,44.23568367,125.91,125.85,50.774]
[1743555892053,34.1546,125.91,125.85,50.774]
[1743555892558,34.1546,125.91,125.85,58.7199]
[1743555892559,14.2992,125.91,125.85,58.7199]
[1743555892733,8.0046,125.92,125.85,58.7199]
[1743555892930,0.063,125.92,125.85,58.7199]
[1743555893233,8.0046,125.92,125.85,58.7199]
[1743555893755,0.063,125.92,125.85,58.7199]
[1743555895954,0.063,125.92,125.86,18.64964886]
[1743555896146,0.063,125.92,125.87,7.16]
[1743555897059,0.063,125.92,125.87,15.1043]
[1743555897960,0.063,125.92,125.87,65.8783]
[1743555900266,0.063,125.92,125.87,57.934]
[1743555900578,10.08108367,125.9,125.87,50.774]
[1743555901934,0.063,125.92,125.87,50.774]
[1743555901935,10.08108367,125.91,125.87,50.774]
[1743555902252,7.9428,125.9,125.87,50.774]
[1743555903967,7.9428,125.9,125.83,52.3052]
[1743555904460,37.88088367,125.9,125.83,52.3052]
[1743555904677,10.08108367,125.87,125.83,50.804]
[1743555904849,10.08108367,125.86,125.83,50.804]
[1743555905865,10.08108367,125.87,125.83,50.804]
[1743555906063,16.38838367,125.88,125.83,50.804]
[1743555906644,7.9447,125.87,125.83,50.804]
[1743555910072,14.2516,125.88,125.83,50.804]
[1743555910860,16.7396,125.89,125.83,58.7511]
[1743555911076,7.9435,125.89,125.83,58.7511]
[1743555911382,7.9435,125.89,125.83,50.804]
[1743555912067,7.9435,125.89,125.83,58.7511]
[1743555912268,7.9435,125.89,125.83,50.804]
[1743555913670,7.9435,125.89,125.83,58.7511]
[1743555914886,6.3049,125.91,125.83,58.7511]
[1743555915067,6.3049,125.91,125.84,18.64964886]
[1743555915992,14.2471,125.91,125.84,18.64964886]
[1743555916284,19.70558367,125.92,125.83,50.804]
[1743555917657,39.55938367,125.92,125.83,58.7509]
[1743555918170,39.55938367,125.92,125.84,38.933972]
[1743555918171,9.6245,125.92,125.84,38.933972]
[1743555918560,9.6245,125.92,125.84,89.707972]
[1743555919390,9.6245,125.92,125.85,7.9459]
[1743555919587,19.70558367,125.92,125.84,50.774]
[1743555919952,39.55938367,125.92,125.84,50.774]
[1743555920259,39.55938367,125.92,125.84,58.7205]
[1743555921669,19.70558367,125.92,125.84,58.7205]
[1743555923884,19.70558367,125.92,125.84,65.8405]
[1743555923885,39.55938367,125.92,125.84,65.8405]
[1743555924263,9.6245,125.92,125.85,18.64964886]
[1743555924592,8.0048,125.92,125.85,18.64964886]
[1743555925488,8.0048,125.92,125.86,7.9453]
[1743555925685,18.0815569,125.92,125.86,50.774]
[1743555926889,8.0048,125.92,125.86,58.7192]
[1743555928383,8.0048,125.92,125.87,18.64964886]
[1743555928685,0.063,125.92,125.87,69.42364886]
[1743555928885,0.063,125.92,125.87,77.36824886]
[1743555930384,0.063,125.92,125.87,69.42364886]
[1743555930590,0.063,125.92,125.87,50.774]
[1743555930965,30.07704368,125.9,125.87,50.774]
[1743555931284,30.07704368,125.9,125.83,50.804]
[1743555931285,10.07704368,125.89,125.83,50.804]
[1743555931864,20.0,125.89,125.83,58.7512]
[1743555932582,0.063,125.92,125.84,18.933972]
[1743555932890,0.063,125.92,125.86,18.64964886]
[1743555933589,0.063,125.92,125.86,69.42364886]
[1743555936391,0.063,125.92,125.86,77.36854886]
[1743555937493,0.063,125.92,125.86,84.46854886]
[1743555939198,0.063,125.92,125.86,84.49854886]
[1743555941381,10.07704368,125.91,125.86,50.804]
[1743555941993,10.07704368,125.9,125.86,50.804]
[1743555942400,10.07704368,125.89,125.86,50.804]
[1743555943090,7.944,125.88,125.86,50.804]
[1743555943883,18.02104368,125.88,125.86,50.804]
[1743555944073,7.944,125.88,125.86,50.804]
[1743555944969,10.07704368,125.87,125.86,0.03]
[1743555945199,18.16390525,125.87,125.86,0.03]
[1743555945876,38.02560525,125.87,125.83,50.804]
[1743555946191,10.07704368,125.86,125.83,50.804]
[1743555947081,38.02354368,125.84,125.83,0.03]
[1743555952095,45.24570525,125.84,125.83,0.0001]
[1743555954123,70.33291568,125.84,125.83,0.0001]
[1743555956698,20.551772,125.79,125.73,0.03]
[1743555957005,10.21920525,125.76,125.73,0.03]
[1743555957318,10.07704368,125.77,125.73,0.03]
[1743555958594,7.9516,125.76,125.73,0.03]
[1743555960707,18.02864368,125.76,125.73,0.03]
[1743555960914,37.90774368,125.76,125.73,0.03]
[1743555961405,7.9516,125.76,125.73,0.03]
[1743555962303,7.9516,125.76,125.73,50.804]
[1743555962915,17.17704368,125.78,125.73,50.804]
[1743555963098,0.14216157,125.81,125.74,18.64964886]
[1743555963413,10.07704368,125.8,125.74,50.774]
[1743555963621,10.07704368,125.79,125.74,50.774]
[1743555963986,10.07704368,125.78,125.74,50.774]
[1743555964743,10.07704368,125.77,125.74,50.774]
[1743555965011,10.07704368,125.75,125.73,0.03]
[1743555966005,27.8307,125.76,125.73,0.03]
[1743555966185,10.07704368,125.75,125.73,0.03]
[1743555966713,10.07704368,125.74,125.73,0.03]
[1743555966913,10.36136682,125.74,125.73,0.03]
[1743555967133,18.31426682,125.74,125.73,0.03]
[1743555967822,24.03489102,125.74,125.73,0.03]
[1743555968023,7.9529,125.74,125.73,0.03]
[1743555968197,7.7654,125.78,125.73,50.804]
[1743555968512,15.93982945,125.8,125.73,50.804]
[1743555968701,15.79766788,125.8,125.73,57.924]
[1743555968903,23.74606788,125.81,125.73,57.924]
[1743555969088,23.74606788,125.81,125.74,7.9529]
[1743555970097,7.9484,125.81,125.74,7.9529]
[1743555970297,23.74606788,125.81,125.74,7.9529]
[1743555971145,15.79766788,125.8,125.73,57.924]
[1743555971309,15.79766788,125.79,125.73,50.804]
[1743555971516,15.79766788,125.78,125.73,50.804]
[1743555972313,23.74606788,125.81,125.73,50.804]
[1743555973517,15.79766788,125.8,125.73,58.7574]
[1743555976238,7.9497,125.79,125.73,58.7574]
[1743555976640,23.74696788,125.8,125.73,58.7574]
[1743555976827,31.77316788,125.82,125.74,18.64964886]
[1743555977034,7.9481,125.82,125.74,69.42364886]
[1743555977227,7.9481,125.82,125.75,0.28432314]
[1743555977428,7.9481,125.82,125.76,7.12]
[1743555977616,23.74576788,125.82,125.76,7.12]
[1743555980444,15.93982945,125.81,125.76,50.774]
[1743555980627,15.79766788,125.8,125.76,50.774]
[1743555982344,7.9497,125.79,125.76,50.774]
[1743555983242,7.9493,125.8,125.76,50.774]
[1743555983431,23.88852945,125.81,125.76,50.774]
[1743555983843,7.183,125.83,125.76,58.7255]
[1743555983844,23.74576788,125.82,125.76,58.7255]
[1743555984144,7.9481,125.82,125.76,58.7255]
[1743555984339,8.0102,125.83,125.77,7.14]
[1743555984540,8.0102,125.83,125.77,8.7105]
[1743555985645,8.0102,125.83,125.77,1.5705]
[1743555985833,8.0102,125.83,125.77,8.7105]
[1743555986521,8.0102,125.83,125.77,16.6614]
[1743555986725,0.063,125.83,125.77,16.6614]
[1743555988549,0.063,125.83,125.78,18.64964886]
[1743555988923,0.063,125.83,125.78,69.42364886]
[1743555990249,0.063,125.83,125.78,50.774]
[1743555990422,15.86066788,125.83,125.78,50.774]
[1743555991251,0.063,125.83,125.78,50.774]
[1743556005061,0.063,125.83,125.78,58.7242]
[1743556005940,0.063,125.83,125.78,50.774]
[1743556006558,0.063,125.83,125.78,57.834]
[1743556007664,8.0102,125.83,125.78,57.834]
[1743556009568,8.0102,125.83,125.78,57.864]
[1743556010970,0.063,125.83,125.78,65.8143]
[1743556015065,0.063,125.83,125.79,18.933972]
[1743556015270,0.063,125.83,125.79,69.707972]
[1743556015463,0.063,125.88,125.83,50.711]
[1743556015464,8.0072,125.88,125.83,50.711]
[1743556015667,0.063,125.88,125.83,50.711]
[1743556017369,0.063,125.88,125.83,58.6579]
[1743556017552,0.063,125.88,125.84,18.64964886]
[1743556017748,0.063,125.88,125.84,22.67961229]
[1743556019263,0.063,125.88,125.84,30.62601229]
[1743556020581,0.063,125.88,125.84,22.67961229]
[1743556021073,0.063,125.88,125.84,73.39061229]
[1743556021279,0.063,125.88,125.84,50.711]
[1743556022259,0.063,125.88,125.84,54.69010541]
[1743556022464,0.063,125.88,125.85,18.64964886]
[1743556022655,0.063,125.88,125.84,54.69010541]
[1743556022860,0.063,125.88,125.84,50.711]
[1743556024083,0.063,125.88,125.85,18.64964886]
[1743556024582,0.063,125.88,125.85,70.88624886]
[1743556024788,0.063,125.88,125.86,7.06]
[1743556024981,0.063,125.88,125.87,18.64964886]
[1743556025163,0.063,125.92,125.89,18.64964886]
[1743556025360,0.063,125.92,125.91,20.476472]
[1743556025566,0.063,125.94,125.92,18.64964886]
[1743556025785,0.063,125.94,125.92,69.29764886]
[1743556026372,0.063,125.94,125.92,75.91094886]
[1743556027993,0.063,125.94,125.92,50.648]
[1743556033096,0.063,125.94,125.93,18.933972]
[1743556033476,0.063,125.96,125.94,50.585]
[1743556035200,0.063,125.96,125.93,50.585]
[1743556035374,15.72824849,125.94,125.9,50.585]
[1743556036797,27.7931,125.93,125.9,50.585]
[1743556037093,15.72824849,125.92,125.9,50.585]
[1743556037299,15.72824849,125.91,125.85,50.585]
[1743556037595,15.72824849,125.92,125.86,30.0]
[1743556037794,67.4976,125.93,125.85,50.585]
[1743556037995,7.9409,125.93,125.87,0.28432314]
[1743556038197,7.9405,125.94,125.89,0.28432314]
[1743556038383,7.9405,125.94,125.9,18.64964886]
[1743556038705,7.9396,125.95,125.9,18.64964886]
[1743556039398,8.0022,125.96,125.9,18.64964886]
[1743556039999,0.063,125.96,125.9,18.64964886]
[1743556040498,0.063,125.96,125.9,25.76964886]
[1743556041596,0.063,125.96,125.9,76.35464886]
[1743556047683,0.063,125.96,125.9,84.29744886]
[1743556047878,0.063,125.96,125.91,0.28432314]
[1743556048189,0.063,125.96,125.93,0.28432314]
[1743556048396,0.063,125.96,125.94,18.64964886]
[1743556048783,0.063,125.96,125.94,25.74964886]
[1743556053598,0.063,125.96,125.94,76.33464886]
[1743556053898,0.063,125.96,125.94,50.585]
[1743556056106,0.063,125.96,125.95,18.64964886]
[1743556056481,0.063,125.99,125.97,18.64964886]
[1743556056684,0.063,125.99,125.97,69.17164886]
[1743556059701,0.063,125.99,125.97,50.522]
[1743556063103,0.063,126.05,126.04,20.0]
[1743556063312,0.063,126.09,126.05,18.64964886]
[1743556063485,0.063,126.09,126.05,69.10864886]
[1743556065803,0.063,126.09,126.06,28.21702314]
[1743556066686,0.063,126.09,126.07,18.64964886]
[1743556066885,0.063,126.09,126.08,7.44432314]
[1743556068004,0.063,126.09,126.08,57.619]
[1743556068212,0.063,126.09,126.08,50.459]
[1743556068914,7.9919,126.12,126.08,50.459]
[1743556069409,6.5977,126.11,126.08,50.459]
[1743556069712,31.71788379,126.11,126.08,50.459]
[1743556069910,1.5781,126.1,126.08,50.459]
[1743556070911,9.5087,126.1,126.08,50.459]
[1743556072223,14.5273,126.11,126.08,50.459]
[1743556073707,34.3512,126.11,126.08,50.459]
[1743556073900,59.47138379,126.11,126.03,50.459]
[1743556075798,25.12018379,126.09,126.03,50.459]
[1743556075996,20.0,126.07,126.03,50.459]
[1743556077298,25.12018379,126.1,126.03,50.459]
[1743556078116,7.9308,126.09,126.03,50.459]
[1743556079311,52.87808379,126.09,126.03,50.459]
[1743556079510,25.12018379,126.08,126.03,50.459]
[1743556079702,1.6165,126.07,126.03,50.459]
[1743556079905,1.6165,126.07,126.03,50.522]
[1743556079906,25.12018379,126.05,126.03,50.522]
[1743556080107,7.9339,126.04,126.03,50.522]
[1743556080297,7.9339,126.04,126.03,0.063]
[1743556080497,33.05408379,126.04,126.03,0.063]
[1743556080697,52.88898379,126.04,125.98,50.459]
[1743556080997,25.12018379,126.02,125.98,50.459]
[1743556081205,25.12018379,126.01,125.98,50.459]
[1743556081607,25.12018379,126.02,125.98,50.459]
[1743556082009,25.40450693,126.03,125.98,50.459]
[1743556082211,7.9352,126.02,125.98,50.459]
[1743556082818,33.05538379,126.02,125.98,50.459]
[1743556085719,33.05538379,126.02,125.94,57.629]
[1743556085905,26.68038379,126.01,125.94,57.629]
[1743556086814,45.12018379,125.99,125.94,50.489]
[1743556087394,20.0,125.99,125.94,50.489]
[1743556088128,34.61638379,126.01,125.94,50.489]
[1743556088426,9.4962,126.01,125.94,50.489]
[1743556088620,34.61638379,126.01,125.94,50.489]
[1743556089802,15.7258982,125.96,125.94,50.489]
[1743556090001,15.7258982,125.96,125.94,0.03]
[1743556090200,23.6654982,125.95,125.94,0.03]
[1743556091417,25.3088982,125.95,125.94,0.03]
[1743556092002,25.59322134,125.95,125.94,0.0001]
[1743556092210,44.2428702,125.95,125.94,0.0001]
[1743556092733,44.2428702,125.95,125.92,0.063]
[1743556092734,25.518472,125.93,125.92,0.0001]
[1743556092936,48.4843702,125.93,125.92,0.0001]
[1743556093596,1.6173,125.89,125.85,50.522]
[1743556093792,35.7258982,125.86,125.85,0.063]
[1743556094796,36.01022134,125.86,125.85,0.063]
[1743556095925,53.45702383,125.86,125.85,0.063]
[1743556096424,72.10667269,125.86,125.85,0.063]
[1743556097598,52.10667269,125.86,125.85,0.063]
[1743556102526,52.10667269,125.86,125.85,0.0001]
[1743556102701,52.10667269,125.86,125.83,0.03]
[1743556102702,38.64964886,125.84,125.83,0.03]
[1743556103024,0.28432314,125.82,125.81,0.03]
[1743556103218,51.38137269,125.82,125.81,0.03]
[1743556103926,59.32917269,125.82,125.81,0.03]
[1743556104525,20.28432314,125.79,125.78,0.03]
[1743556104704,45.51172383,125.79,125.78,0.03]
[1743556105025,45.22740069,125.79,125.78,0.03]
[1743556105227,45.51172383,125.79,125.78,0.03]
[1743556105403,64.16137269,125.79,125.78,0.03]
[1743556105611,20.0,125.75,125.73,0.03]
[1743556105824,53.46462383,125.74,125.73,0.03]
[1743556106429,78.36687269,125.74,125.73,0.03]
[1743556107525,18.64964886,125.73,125.72,0.063]
[1743556107725,20.28432314,125.71,125.7,0.03]
[1743556107908,79.33617269,125.71,125.7,0.03]
[1743556108232,104.56357338,125.71,125.7,0.0001]
[1743556108528,38.933972,125.67,125.66,0.03]
[1743556108714,64.16137269,125.67,125.66,0.03]
[1743556109640,45.22740069,125.67,125.66,0.03]
[1743556109811,0.28432314,125.73,125.66,50.489]
[1743556110003,25.22740069,125.72,125.66,50.489]
[1743556110204,25.22740069,125.7,125.66,50.489]
[1743556110511,45.22740069,125.69,125.66,0.03]
[1743556110703,25.22740069,125.67,125.66,0.03]
[1743556111415,38.64964886,125.65,125.64,2.8802738]
[1743556111612,63.87704955,125.65,125.64,2.8802738]
[1743556112007,71.83564955,125.65,125.64,2.8802738]
[1743556112405,27.9586,125.65,125.64,2.8802738]
[1743556112717,7.9573,125.67,125.64,2.8802738]
[1743556113435,33.18470069,125.67,125.64,2.8802738]
[1743556114538,25.22740069,125.66,125.64,2.8802738]
[1743556115122,19.8933,125.67,125.64,2.8802738]
[1743556115437,25.22740069,125.66,125.64,2.8802738]
[1743556115616,25.22740069,125.66,125.64,2.9102738]
[1743556115818,64.16137269,125.65,125.64,2.9102738]
[1743556116233,71.40137269,125.65,125.64,2.9102738]
[1743556117825,79.35997269,125.65,125.64,7.38e-05]
[1743556123742,72.11997269,125.65,125.64,7.38e-05]
[1743556125624,53.47032383,125.65,125.64,7.38e-05]
[1743556125828,27.9586,125.65,125.64,7.38e-05]
[1743556126044,28.24292314,125.65,125.64,7.38e-05]
[1743556126233,33.47032383,125.65,125.64,7.38e-05]
[1743556127225,52.11997269,125.65,125.64,7.38e-05]
[1743556127731,42.71208515,125.65,125.64,7.38e-05]
[1743556127929,23.77811315,125.65,125.64,7.38e-05]
[1743556128255,7.9579,125.66,125.64,7.38e-05]
[1743556129350,0.28432314,125.65,125.64,7.38e-05]
[1743556129543,16.10383629,125.65,125.64,7.38e-05]
[1743556130153,23.77741315,125.66,125.64,7.38e-05]
[1743556131976,7.9579,125.66,125.64,7.38e-05]
[1743556132175,7.956,125.69,125.64,50.4590738]
[1743556132833,16.10383629,125.68,125.64,50.4590738]
[1743556133032,15.81951315,125.67,125.64,50.4590738]
[1743556133959,15.81951315,125.66,125.64,50.4590738]
[1743556134456,0.28432314,125.68,125.64,50.4590738]
[1743556134457,15.81951315,125.67,125.64,50.4590738]
[1743556134754,7.9579,125.66,125.64,50.4590738]
[1743556135858,7.9579,125.66,125.64,7.38e-05]
[1743556136233,23.77741315,125.66,125.64,7.38e-05]
[1743556137449,18.933972,125.65,125.64,7.38e-05]
[1743556137753,34.75348515,125.65,125.64,7.38e-05]
[1743556139130,42.71208515,125.65,125.64,7.38e-05]
[1743556139362,24.06243629,125.65,125.64,7.38e-05]
[1743556140656,23.06243629,125.65,125.64,7.38e-05]
[1743556141849,41.71208515,125.65,125.64,7.38e-05]
[1743556142453,41.99640829,125.65,125.64,7.38e-05]
[1743556142956,15.81951315,125.58,125.53,50.489]
[1743556143344,7.9636,125.57,125.53,50.489]
[1743556143551,15.81951315,125.56,125.53,0.03]
[1743556143752,16.10383629,125.54,125.53,0.03]
[1743556143945,15.81951315,125.54,125.53,0.03]
[1743556144140,15.81951315,125.54,125.51,0.03]
[1743556144343,16.10383629,125.52,125.51,0.03]
[1743556144566,16.10383629,125.52,125.47,4.893]
[1743556144745,15.81951315,125.5,125.45,51.9894]
[1743556144942,15.81951315,125.51,125.45,51.9894]
[1743556145349,7.9681,125.5,125.45,51.9894]
[1743556145548,23.78761315,125.5,125.45,51.9894]
[1743556145757,7.9681,125.5,125.45,51.9894]
[1743556145962,23.78711315,125.51,125.45,51.9894]
[1743556146166,15.81951315,125.51,125.45,51.9894]
[1743556146660,23.78701315,125.51,125.45,51.9894]
[1743556146867,266.51816016,125.49,125.45,51.9894]
[1743556147060,266.51816016,125.49,125.45,32.28789159]
[1743556147564,266.51816016,125.49,125.44,7.18]
[1743556147565,15.9910896,125.48,125.44,0.28432314]
[1743556147761,15.9910896,125.48,125.43,195.34771198]
[1743556147965,24.17754069,125.47,125.43,136.9]
[1743556148148,24.17754069,125.47,125.45,80.9]
[1743556148339,12.08754145,125.46,125.45,80.9]
[1743556149757,29.50986444,125.46,125.45,80.9]
[1743556150062,29.50986444,125.46,125.45,8.94602369]
[1743556150271,29.50986444,125.46,125.45,16.91732369]
[1743556150459,24.17754069,125.48,125.45,16.94732369]
[1743556150664,24.17754069,125.48,125.46,13.5216]
[1743556151162,24.17754069,125.48,125.46,94.4216]
[1743556151673,24.17754069,125.48,125.47,7.97]
[1743556151863,24.17754069,125.48,125.46,102.392]
[1743556152357,138.58944329,125.49,125.46,102.392]
[1743556152748,138.58944329,125.49,125.46,94.4216]
[1743556153442,138.58944329,125.49,125.46,102.392]
[1743556153649,138.58944329,125.49,125.47,18.64964886]
[1743556154545,138.58944329,125.49,125.47,99.54964886]
[1743556154857,138.58944329,125.49,125.47,80.9]
[1743556155271,138.58944329,125.49,125.47,80.14]
[1743556155582,138.58944329,125.49,125.47,88.1095]
[1743556155867,57.38256134,125.57,125.47,88.1095]
[1743556155868,7.9643,125.56,125.47,88.1095]
[1743556156272,25.3655922,125.55,125.47,80.14]
[1743556156442,53.2405922,125.56,125.47,88.11]
[1743556156847,53.2405922,125.56,125.47,88.1099]
[1743556157049,53.2405922,125.56,125.47,80.14]
[1743556157371,25.3655922,125.55,125.47,80.14]
[1743556157663,7.9655,125.54,125.47,80.14]
[1743556157843,33.3310922,125.54,125.47,80.14]
[1743556158048,53.2449922,125.54,125.47,80.14]
[1743556158272,27.8794,125.54,125.47,80.14]
[1743556158765,53.2449922,125.54,125.47,80.14]
[1743556159154,25.3655922,125.53,125.47,80.14]
[1743556159363,45.3655922,125.5,125.45,8.97602369]
[1743556159556,0.28432314,125.48,125.45,8.97602369]
[1743556159761,7.97,125.47,125.45,8.97602369]
[1743556159966,33.3355922,125.47,125.45,8.97602369]
[1743556160754,25.3655922,125.46,125.45,2.369e-05]
[1743556161460,7.97,125.47,125.45,2.369e-05]
[1743556162357,33.3355922,125.47,125.45,2.369e-05]
[1743556163175,7.9681,125.5,125.45,2.369e-05]
[1743556163376,106.10775377,125.53,125.45,2.369e-05]
[1743556163674,7.9662,125.53,125.46,7.4]
[1743556163880,39.9533922,125.54,125.46,7.4]
[1743556164281,14.5878,125.54,125.46,7.4]
[1743556164491,14.5878,125.54,125.45,94.24862369]
[1743556164492,14.5878,125.54,125.47,7.4]
[1743556164664,20.0,125.51,125.45,80.14002369]
[1743556164984,39.9533922,125.54,125.45,80.14002369]
[1743556165686,25.3655922,125.52,125.45,80.14002369]
[1743556165983,7.9674,125.51,125.45,80.14002369]
[1743556166287,25.3655922,125.49,125.45,2.369e-05]
[1743556166496,25.3655922,125.48,125.45,2.369e-05]
[1743556166788,25.3655922,125.47,125.45,2.369e-05]
[1743556167978,39.9391922,125.46,125.45,2.369e-05]
[1743556168680,40.22351534,125.46,125.45,2.369e-05]
[1743556169967,7.9693,125.48,125.45,2.369e-05]
[1743556170294,53.2582922,125.48,125.45,2.369e-05]
[1743556170494,25.3655922,125.47,125.45,2.369e-05]
[1743556170694,25.64991534,125.46,125.45,2.369e-05]
[1743556171995,7.9706,125.46,125.45,2.369e-05]
[1743556172169,33.3348922,125.48,125.45,2.369e-05]
[1743556172475,0.28432314,125.47,125.45,2.369e-05]
[1743556172675,25.64991534,125.47,125.45,2.369e-05]
[1743556172859,45.3655922,125.46,125.45,2.369e-05]
[1743556173778,20.0,125.46,125.45,2.369e-05]
[1743556174076,7.9706,125.46,125.45,2.369e-05]
[1743556174457,6.6607,125.49,125.45,2.369e-05]
[1743556174659,45.2853922,125.51,125.45,2.369e-05]
[1743556175072,19.9198,125.51,125.45,2.369e-05]
[1743556175274,0.063,125.46,125.45,2.369e-05]
[1743556182810,0.063,125.46,125.45,80.14002369]
[1743556182978,0.063,125.54,125.45,80.14002369]
[1743556183165,0.063,125.54,125.46,18.64964886]
[1743556183490,0.063,125.54,125.49,1.5429]
[1743556183673,0.063,125.54,125.49,89.1429]
[1743556184770,0.063,125.54,125.49,97.111]
[1743556185373,0.063,125.54,125.49,89.1429]
[1743556186173,0.063,125.54,125.49,97.1113]
[1743556186590,0.063,125.54,125.5,6.2041]
[1743556187874,0.063,125.54,125.5,86.3441]
[1743556188774,0.063,125.54,125.5,80.14]
[1743556191396,25.4285922,125.54,125.47,80.14]
[1743556192482,0.063,125.54,125.47,80.14]
[1743556192678,25.4285922,125.54,125.47,80.14]
[1743556193101,7.9662,125.53,125.47,80.14]
[1743556194794,27.8817,125.53,125.47,80.14]
[1743556196491,59.8396922,125.53,125.46,80.14]
[1743556196883,25.3655922,125.52,125.46,80.14]
[1743556197669,25.3655922,125.51,125.45,2.369e-05]
[1743556197874,25.3655922,125.48,125.45,2.369e-05]
[1743556198477,7.97,125.47,125.45,2.369e-05]
[1743556200574,7.9693,125.48,125.45,2.369e-05]
[1743556201295,6.5924,125.53,125.45,80.14002369]
[1743556201499,7.967,125.52,125.45,80.14002369]
[1743556202799,27.8841,125.52,125.45,80.14002369]
[1743556203395,53.2496922,125.52,125.45,87.58002369]
[1743556203707,25.3655922,125.51,125.45,87.58002369]
[1743556203999,53.2496922,125.52,125.45,87.58002369]
[1743556204196,27.8841,125.52,125.45,87.58002369]
[1743556204412,14.5588,125.53,125.45,95.55122369]
[1743556204585,8.0285,125.54,125.47,7.97]
[1743556205281,8.0285,125.54,125.46,9.5393]
[1743556205486,33.3940922,125.54,125.46,1.5689]
[1743556205689,53.3079922,125.54,125.46,1.5689]
[1743556205878,53.3079922,125.54,125.46,81.7089]
[1743556206078,27.9424,125.54,125.46,81.7089]
[1743556206284,53.3079922,125.54,125.46,81.7089]
[1743556207100,0.063,125.54,125.47,45.536372]
[1743556207303,0.063,125.54,125.5,18.64964886]
[1743556207603,0.063,125.54,125.51,7.46]
[1743556208592,0.063,125.54,125.52,7.9668]
[1743556208897,0.063,125.54,125.52,88.1068]
[1743556209100,0.063,125.54,125.53,20.21094886]
[1743556209299,0.063,125.54,125.53,100.35094886]
[1743556209499,33.0922922,125.63,125.54,98.78964886]
[1743556209500,15.6866,125.63,125.54,98.78964886]
[1743556209688,7.7267,125.63,125.54,98.78964886]
[1743556209889,0.063,125.65,125.55,0.28432314]
[1743556210093,8.0217,125.65,125.57,18.64964886]
[1743556210308,8.0217,125.65,125.57,98.78964886]
[1743556210507,0.063,125.65,125.57,98.78964886]
[1743556210896,0.063,125.65,125.58,7.963]
[1743556211806,0.063,125.65,125.57,98.78964886]
[1743556213700,0.063,125.65,125.57,106.75324886]
[1743556214800,0.063,125.65,125.57,98.78964886]
[1743556216713,0.063,125.65,125.57,106.75314886]